Cogmind - Beta 9.3 @@@ ROGUE MODE // 2019.12.21 @ 02:36:39 // Winter2019/RPGLIKE Player: cptwinky Result: Destroyed by B-86 Titan with Hardcell Cannon Performance ------------- Evolutions (7) 3500 Regions Visited (9) 1800 Robots Destroyed (15) 75 Value Destroyed (361) 361 Prototype IDs (1) 20 Alien Tech Used (0) 0 Bonus (0) 0 TOTAL SCORE: 5756 Bonus ------- None Cogmind --------- Core Integrity 0/850 Matter 147/300 Energy 169/170 System Corruption 0% Temperature Cool (9) Movement Flying (35) Location -3/Research Parts ------- > --- POWER (1) -------- Micro Fission Core > --- PROPULSION (1) --- Improved Flight Unit > --- UTILITY (4) ------ Improved Signal Interpreter Improved Terrain Scanner Advanced ECM Suite Hacking Suite > --- WEAPON (1) ------- Chainsword > --- INVENTORY (1) ---- (None) Peak State ------------ > --- POWER ------------ Micro Fission Core > --- PROPULSION ------- Improved Flight Unit > --- UTILITY ---------- Improved Signal Interpreter Improved Terrain Scanner Advanced ECM Suite Hacking Suite > --- WEAPON ----------- Chainsword > --- INVENTORY -------- (None) [Rating: 25] Favorites ----------- Power Micro Nuclear Core Engine Light Ion Engine Power Core Micro Nuclear Core Propulsion Improved Flight Unit Flight Unit Improved Flight Unit Utility Improved Terrain Scanner Device Improved Terrain Scanner Processor Improved Signal Interpreter Hackware Hacking Suite Weapon Chainsword Ballistic Gun Assault Rifle Launcher Mini Grenade Launcher Slashing Weapon Chainsword Build | -11 -10 -9 -8 -7 -6 -5 -4 -4 -3 ------- Run | Scr Mat Mat Mat Fac Fac Fac Fac Arm Res Slots Evolved 3 | . . . . . 2 1 . . . Power . | . . . . . . . . . . Propulsion . | . . . . . . . . . . Utility 3 | . . . . . 2 1 . . . Weapon . | . . . . . . . . . . Parts Attached 14 | 2 2 . 1 4 2 2 1 . . Power 3 | 1 . . 1 . . 1 . . . Engine 1 | 1 . . . . . . . . . Core 2 | . . . 1 . . 1 . . . Reactor . | . . . . . . . . . . Propulsion 3 | . 1 . . 2 . . . . . Treads . | . . . . . . . . . . Leg . | . . . . . . . . . . Wheel . | . . . . . . . . . . Hover . | . . . . . . . . . . Flight 3 | . 1 . . 2 . . . . . Utility 5 | . 1 . . . 2 1 1 . . Device 3 | . 1 . . . . 1 1 . . Storage . | . . . . . . . . . . Processor 1 | . . . . . 1 . . . . Hackware 1 | . . . . . 1 . . . . Protection . | . . . . . . . . . . Artifact . | . . . . . . . . . . Weapon 3 | 1 . . . 2 . . . . . Energy Gun . | . . . . . . . . . . Energy Cannon . | . . . . . . . . . . Ballistic Gun 1 | 1 . . . . . . . . . Ballistic Cannon . | . . . . . . . . . . Launcher 1 | . . . . 1 . . . . . Special Weapon . | . . . . . . . . . . Impact Weapon . | . . . . . . . . . . Slashing Weapon 1 | . . . . 1 . . . . . Piercing Weapon . | . . . . . . . . . . Special Melee Weapon . | . . . . . . . . . . Unidentified Prototypes 1 | . . . . 1 . . . . . Parts Lost . | . . . . . . . . . . Power . | . . . . . . . . . . Propulsion . | . . . . . . . . . . Utility . | . . . . . . . . . . Weapon . | . . . . . . . . . . Highest Loss Streak . | . . . . . . . . . . Average Slot Usage (%) 93 | . 61 100 100 100 98 85 100 100 100 Engine 3 | . 25 25 2 . . . . . . Core 15 | . . . 22 25 17 14 14 14 14 Flight 17 | . 8 25 25 25 17 14 14 14 14 Device 21 | . 2 25 25 25 17 14 28 28 28 Processor 7 | . . . . . 10 14 14 14 14 Hackware 8 | . . . . . 15 14 14 14 14 Ballistic Gun 9 | . 25 25 25 17 . . . . . Launcher 1 | . . . . 5 . . . . . Slashing Weapon 8 | . . . . 1 17 14 14 14 14 Naked Turns . | . . . . . . . . . . Heaviest Build 12 | 5 6 6 9 10 10 10 12 12 12 Greatest Support 16 | 8 9 9 9 11 11 11 16 16 16 Greatest Overweight (x) . | . . . . . . . . . . Average Overweight (x) . | . . . . . . . . . . Largest Inventory Capacity 1 | 1 1 1 1 1 1 1 1 1 1 Average Capacity 1 | 1 1 1 1 1 1 1 1 1 1 Most Carried 1 | . . 1 1 1 1 1 1 . . Average Carried . | . . . 1 . . . . . . Final Capacity 1 | 1 1 1 1 1 1 1 1 1 1 Final Carried 1 | . . 1 1 1 1 1 . . . Class Distribution -------------------- 39% | Hacker-Mutant 28% | Hacker-Ninja 22% | Hacker-Scout 10% | Mutant Dominant Class ---------------- Mutant | -10/Materials Hacker-Mutant | -9/Materials Hacker-Mutant | -8/Materials Hacker-Mutant | -7/Factory Hacker-Scout | -6/Factory Hacker-Scout | -5/Factory Hacker-Ninja | -4/Factory Hacker-Ninja | -4/Armory Hacker-Ninja | -3/Research Resources | -11 -10 -9 -8 -7 -6 -5 -4 -4 -3 ----------- Run | Scr Mat Mat Mat Fac Fac Fac Fac Arm Res Matter Collected 404 | 53 207 . . 113 31 . . . . Remotely . | . . . . . . . . . . Salvage Created 414 | 19 112 . . 48 31 . . 204 . Parts 43 | 4 8 . 3 6 5 . . 17 . Haulers Intercepted 1 | . 1 . . . . . . . . Recyclers Shooed . | . . . . . . . . . . Parts Field Recycled . | . . . . . . . . . . Retrieved Matter . | . . . . . . . . . . Parts Self-Destructed . | . . . . . . . . . . Prevented . | . . . . . . . . . . Kills | -11 -10 -9 -8 -7 -6 -5 -4 -4 -3 ------- Run | Scr Mat Mat Mat Fac Fac Fac Fac Arm Res Combat Hostiles Destroyed 10 | . 3 . 1 2 . . . 4 . Melee 4 | . . . . . . . . 4 . Guns 5 | . 3 . 1 1 . . . . . AOE 1 | . . . . 1 . . . . . Classes Destroyed 7 | 1 2 . 1 1 1 . . 1 . Worker 1 | . . . . 1 . . . . . Tunneler 2 | 1 1 . . . . . . . . Hauler 1 | . 1 . . . . . . . . Watcher 1 | . . . . . 1 . . . . Swarmer 5 | . 3 . . 2 . . . . . Grunt 1 | . . . 1 . . . . . . Protector 4 | . . . . . . . . 4 . Best Kill Streak 4 | 1 4 . 1 2 1 . . 4 . Combat Bots Only 4 | . 3 . 1 1 . . . 4 . Max Kills in Single Turn 1 | 1 1 . 1 1 1 . . 1 . Gunslinging . | . . . . . . . . . . Exploded 1 | . . . . 1 . . . . . Melee 1 | . . . . . . . . 1 . Uniques/NPCs Destroyed . | . . . . . . . . . . Combat | -11 -10 -9 -8 -7 -6 -5 -4 -4 -3 -------- Run | Scr Mat Mat Mat Fac Fac Fac Fac Arm Res Damage Taken 1421 | . 45 . 220 496 109 23 101 185 242 Core 1240 | . 39 . 176 432 101 23 96 159 214 Absorbed by Shields 22 | . . . . 22 . . . . . Redirected to Core 597 | . 20 . 148 188 25 . 16 93 107 Core Remaining (%) 60 | 100 99 99 90 18 26 27 . 24 . Volleys Fired 61 | 3 17 7 22 12 . . . . . Largest 1 | 1 1 1 1 1 . . . . . Hottest 30 | 20 20 20 20 30 . . . . . Shots Fired 61 | 3 17 7 22 12 . . . . . Gun 57 | 3 17 7 22 8 . . . . . Cannon . | . . . . . . . . . . Launcher 4 | . . . . 4 . . . . . Special . | . . . . . . . . . . Kinetic 57 | 3 17 7 22 8 . . . . . Thermal . | . . . . . . . . . . Explosive 4 | . . . . 4 . . . . . Electromagnetic . | . . . . . . . . . . Robot Hit Streak 8 | 2 6 2 7 8 . . . . . Robot Miss Streak 5 | 1 1 2 3 5 . . . . . Penetration Max . | . . . . . . . . . . Secondary Targets . | . . . . . . . . . . Shots Hit Robots 53 | 2 14 4 16 4 1 1 . 8 3 Core Hits 27 | 1 6 . 5 9 1 . . 4 1 Critical Hits 1 | . . . 1 . . . . . . Critical Kills . | . . . . . . . . . . Critical Parts Destroyed 1 | . . . 1 . . . . . . Melee Attacks 38 | . . . . 3 6 5 5 16 3 Impact . | . . . . . . . . . . Slashing 38 | . . . . 3 6 5 5 16 3 Piercing . | . . . . . . . . . . Sneak Attacks 8 | . . . . . . . . 8 . Combat Hostiles . | . . . . . . . . . . Follow-up Attacks . | . . . . . . . . . . Damage Inflicted 1722 | 40 166 50 192 207 48 37 . 869 113 Guns 514 | 40 166 50 192 66 . . . . . Cannons . | . . . . . . . . . . Explosions 141 | . . . . 141 . . . . . Melee 1067 | . . . . . 48 37 . 869 113 Ramming . | . . . . . . . . . . Kinetic 514 | 40 166 50 192 66 . . . . . Thermal . | . . . . . . . . . . Explosive 141 | . . . . 141 . . . . . Electromagnetic . | . . . . . . . . . . Impact . | . . . . . . . . . . Slashing 1067 | . . . . . 48 37 . 869 113 Piercing . | . . . . . . . . . . Highest Corruption 16 | . . . . 16 . . . . . Average Corruption 15 | . . . . 15 . . . . . Corruption Purged . | . . . . . . . . . . Effects 12 | . . . . 12 . . . . . Matter Fused 1 | . . . . 1 . . . . . Heat Flow Errors 1 | . . . . 1 . . . . . Energy Discharges 1 | . . . . 1 . . . . . Data Loss (major) 1 | . . . . 1 . . . . . Misdirections 5 | . . . . 5 . . . . . Targeting Errors 3 | . . . . 3 . . . . . Overload Shots . | . . . . . . . . . . Overflow Damage 257 | . . . . . . . . 257 . Projectiles . | . . . . . . . . . . Explosions . | . . . . . . . . . . Melee 257 | . . . . . . . . 257 . Knockbacks . | . . . . . . . . . . Impact . | . . . . . . . . . . Kinetic . | . . . . . . . . . . Secondary . | . . . . . . . . . . Self-Inflicted Damage 35 | . . . . 35 . . . . . Shots 2 | . . . . 2 . . . . . Rammed . | . . . . . . . . . . Targets Rammed . | . . . . . . . . . . Kicked . | . . . . . . . . . . Crushed . | . . . . . . . . . . Highest Temperature 132 | . 1 1 5 132 . . . . . Average Temperature 30 | . 1 1 2 59 . . . . . Received Heat Transfer 306 | . . . 117 93 42 . 18 18 18 Siege Activations . | . . . . . . . . . . Robots Corrupted . | . . . . . . . . . . Combat Hostiles . | . . . . . . . . . . Parts Fried . | . . . . . . . . . . Impact Corruptions . | . . . . . . . . . . Robots Melted . | . . . . . . . . . . Combat Hostiles . | . . . . . . . . . . Parts Melted . | . . . . . . . . . . Heat Transferred . | . . . . . . . . . . Parts Sabotaged . | . . . . . . . . . . Parts Stolen . | . . . . . . . . . . Parts Stripped . | . . . . . . . . . . Power Chain Reactions 3 | . . . . 2 . . . 1 . Missiles Intercepted . | . . . . . . . . . . Alert | -11 -10 -9 -8 -7 -6 -5 -4 -4 -3 ------- Run | Scr Mat Mat Mat Fac Fac Fac Fac Arm Res Peak Influence 243 | 5 138 64 68 243 201 110 131 223 132 Average Influence 94 | 2 69 62 43 114 147 101 91 106 121 Maximum Alert Level 1 | . . . . 1 1 . . 1 . Low Security (%) 94 | 100 100 100 100 78 92 100 100 93 100 Level 1 5 | . . . . 21 7 . . 6 . Level 2 . | . . . . . . . . . . Level 3 . | . . . . . . . . . . Level 4 . | . . . . . . . . . . Level 5 . | . . . . . . . . . . High Security . | . . . . . . . . . . Max Security . | . . . . . . . . . . Squads Dispatched 7 | . . . . 4 1 . 1 1 . Investigation 3 | . . . . 2 . . . 1 . Extermination . | . . . . . . . . . . Reinforcement 4 | . . . . 2 1 . 1 . . Assault . | . . . . . . . . . . Garrison . | . . . . . . . . . . Intercept . | . . . . . . . . . . Construction Impeded . | . . . . . . . . . . Haulers Reinforced . | . . . . . . . . . . Stealth | -11 -10 -9 -8 -7 -6 -5 -4 -4 -3 --------- Run | Scr Mat Mat Mat Fac Fac Fac Fac Arm Res Distress Signals 8 | . . . 3 . 2 2 . 1 . Communications Jammed . | . . . . . . . . . . Distress Signals . | . . . . . . . . . . Times Spotted 68 | . 5 . 9 16 8 3 8 18 1 Peak Tracking Total 13 | . 5 . 9 6 4 6 6 13 1 Tactical Retreats 5 | . . . 1 1 1 1 . 1 . Traps | -11 -10 -9 -8 -7 -6 -5 -4 -4 -3 ------- Run | Scr Mat Mat Mat Fac Fac Fac Fac Arm Res Traps Triggered 1 | . . . . 1 . . . . . Indirectly . | . . . . . . . . . . Trap Hack Attempts . | . . . . . . . . . . Triggered . | . . . . . . . . . . Disarmed . | . . . . . . . . . . Reprogrammed . | . . . . . . . . . . Reused . | . . . . . . . . . . Traps Extracted . | . . . . . . . . . . Installed . | . . . . . . . . . . Triggered . | . . . . . . . . . . Machines | -11 -10 -9 -8 -7 -6 -5 -4 -4 -3 ---------- Run | Scr Mat Mat Mat Fac Fac Fac Fac Arm Res Machines Disabled . | . . . . . . . . . . Max in Single Turn . | . . . . . . . . . . Garrison Access 2 | . . . . . . 1 1 . . Machines Sabotaged . | . . . . . . . . . . Garrisons Compromised . | . . . . . . . . . . Overloaded Fab Kills 9 | . . . . 7 . . . 2 . Fab Network Shutdowns . | . . . . . . . . . . Hacking | -11 -10 -9 -8 -7 -6 -5 -4 -4 -3 --------- Run | Scr Mat Mat Mat Fac Fac Fac Fac Arm Res Machines Accessed 20 | . 2 2 2 3 3 2 2 4 . Terminals 14 | . 1 2 2 2 2 1 1 3 . Fabricators 2 | . . . . 1 . . . 1 . Repair Stations . | . . . . . . . . . . Recycling Units 2 | . 1 . . . 1 . . . . Scanalyzers . | . . . . . . . . . . Garrison Access 2 | . . . . . . 1 1 . . Total Hacks 33 | . 2 5 3 5 7 3 2 6 . Successful 22 | . 2 2 2 2 4 3 2 5 . Failed 11 | . . 3 1 3 3 . . 1 . Catastrophic 3 | . . 1 . 2 . . . . . Database Lockouts . | . . . . . . . . . . Manual 21 | . 1 5 3 3 4 1 1 3 . Terminals 27 | . 1 5 3 4 6 2 1 5 . Fabricators 2 | . . . . 1 . . . 1 . Repair Stations . | . . . . . . . . . . Recycling Units 2 | . 1 . . . 1 . . . . Scanalyzers . | . . . . . . . . . . Garrison Access 2 | . . . . . . 1 1 . . Terminal Hacks 12 | . 1 2 1 1 2 1 . 4 . Robot Analysis 1 | . . . . . 1 . . . . Level Access Points 7 | . 1 1 1 1 1 1 . 1 . Hauler Manifests 1 | . . 1 . . . . . . . Zone Layout 3 | . . . . . . . . 3 . Fabricator Hacks . | . . . . . . . . . . Repair Station Hacks . | . . . . . . . . . . Recycling Unit Hacks 2 | . 1 . . . 1 . . . . Retrieve Components 2 | . 1 . . . 1 . . . . Scanalyzer . | . . . . . . . . . . Garrison Access Hacks 2 | . . . . . . 1 1 . . Seal Access 2 | . . . . . . 1 1 . . Unauthorized Hacks 13 | . . . 2 2 3 2 2 2 . Terminals 4 | . . . 1 . 1 1 1 . . Assimilate 1 | . . . . . 1 . . . . Botnet 1 | . . . . . . . 1 . . Disrupt 2 | . . . 1 . . 1 . . . Fabricators 2 | . . . . 1 . . . 1 . Overload 2 | . . . . 1 . . . 1 . Repair Stations . | . . . . . . . . . . Recycling Units . | . . . . . . . . . . Scanalyzers . | . . . . . . . . . . Garrison Access . | . . . . . . . . . . Data Cores Recovered . | . . . . . . . . . . Used . | . . . . . . . . . . Hacking Detections 12 | . 1 1 2 2 2 1 1 2 . Full Trace Events 1 | . . . . 1 . . . . . Feedback Events . | . . . . . . . . . . Feedback Blocked . | . . . . . . . . . . Robot Schematics Acquired . | . . . . . . . . . . Robots Built . | . . . . . . . . . . Matter . | . . . . . . . . . . Time . | . . . . . . . . . . Total Robot Build Rating . | . . . . . . . . . . Part Schematics Acquired . | . . . . . . . . . . Parts Built . | . . . . . . . . . . Matter . | . . . . . . . . . . Time . | . . . . . . . . . . Total Part Build Rating . | . . . . . . . . . . Parts Repaired . | . . . . . . . . . . Time . | . . . . . . . . . . Parts Recycled . | . . . . . . . . . . Recycled Matter . | . . . . . . . . . . Retrieved Matter . | . . . . . . . . . . Retrieved Components 3 | . . . . . 3 . . . . Parts Scanalyzed . | . . . . . . . . . . Part Schematics Acquired . | . . . . . . . . . . Parts Damaged . | . . . . . . . . . . Bothacking | -11 -10 -9 -8 -7 -6 -5 -4 -4 -3 ------------ Run | Scr Mat Mat Mat Fac Fac Fac Fac Arm Res Used RIF Installer . | . . . . . . . . . . Robots Hacked . | . . . . . . . . . . Non-combat . | . . . . . . . . . . Combat . | . . . . . . . . . . Robot Hacks Applied . | . . . . . . . . . . Relay Couplers Released . | . . . . . . . . . . Robots Rewired . | . . . . . . . . . . Allies Hacked . | . . . . . . . . . . Hacks Repelled . | . . . . . . . . . . Allies | -11 -10 -9 -8 -7 -6 -5 -4 -4 -3 -------- Run | Scr Mat Mat Mat Fac Fac Fac Fac Arm Res Total Allies 1 | . . . . . 1 . . . . Largest Group 1 | . . . . . 1 . . . . Highest-Rated Group 26 | . . . . . 26 . . . . Highest-Rated Ally 26 | . . . . . 26 . . . . Total Orders . | . . . . . . . . . . Ally Attacks . | . . . . . . . . . . Total Damage . | . . . . . . . . . . Kills . | . . . . . . . . . . Allies Corrupted . | . . . . . . . . . . Allies Melted . | . . . . . . . . . . Intel | -11 -10 -9 -8 -7 -6 -5 -4 -4 -3 ------- Run | Scr Mat Mat Mat Fac Fac Fac Fac Arm Res Robot Analysis Total 1 | . . . . . 1 . . . . Derelict Logs Recovered . | . . . . . . . . . . Drone Launches . | . . . . . . . . . . Drone Recoveries . | . . . . . . . . . . Exploration | -11 -10 -9 -8 -7 -6 -5 -4 -4 -3 ------------- Run | Scr Mat Mat Mat Fac Fac Fac Fac Arm Res Turns Passed 942 | 36 84 47 93 176 104 144 123 99 36 Spaces Moved 1749 | 21 90 79 104 330 229 361 312 139 84 Core 94 | 21 73 . . . . . . . . Treads . | . . . . . . . . . . Legs . | . . . . . . . . . . Wheels . | . . . . . . . . . . Hover . | . . . . . . . . . . Flight 1655 | . 17 79 104 330 229 361 312 139 84 Fastest Speed 35 | 50 40 40 40 35 35 35 35 35 35 Average Speed 36 | 50 48 40 40 37 35 35 35 35 35 Slowest Speed 50 | 50 50 40 40 40 35 35 35 35 35 Overloaded Moves . | . . . . . . . . . . Propulsion Burnouts . | . . . . . . . . . . Robots Hopped 12 | . . 1 1 3 1 . 2 3 1 Cave-ins Triggered . | . . . . . . . . . . Exploration Rate (%) 13 | 2 24 14 16 16 13 17 15 17 5 Regions Visited 9 Branch Regions 1 Pre-discovered Areas . | . . . . . . . . . . Known Exits Taken 8 | . 1 1 1 1 1 1 1 1 . Unknown Exits Taken 1 | 1 . . . . . . . . . Scrap Searched . | . . . . . . . . . . Spaces Dug 26 | . . . . 10 3 2 4 7 . Terrain Destroyed 47 | . . . . 31 3 2 4 7 . Melee 19 | . . . . 3 3 2 4 7 . Projectile . | . . . . . . . . . . AOE 28 | . . . . 28 . . . . . Actions | -11 -10 -9 -8 -7 -6 -5 -4 -4 -3 --------- Run | Scr Mat Mat Mat Fac Fac Fac Fac Arm Res Total 1906 | 42 112 85 131 363 241 370 315 161 86 Wait 24 | 17 2 . . . 4 1 . . . Move 1717 | 20 89 76 101 323 226 360 307 133 82 Hop 11 | . . 1 1 3 1 . 2 2 1 Pick Up 2 | . . 1 . . 1 . . . . Fast Attach 10 | 2 2 . 1 2 2 1 . . . Attach 2 | . . . . . . 1 1 . . Detach 2 | . . . . 1 . 1 . . . Swap 2 | . . . . 2 . . . . . Drop 6 | . . . 1 3 1 1 . . . Fire 61 | 3 17 7 22 12 . . . . . Melee 38 | . . . . 3 6 5 5 16 3 Ram . | . . . . . . . . . . Kick . | . . . . . . . . . . Crush . | . . . . . . . . . . Escape Stasis 14 | . . . . 14 . . . . . Rewire . | . . . . . . . . . . Trap . | . . . . . . . . . . Miscellaneous 17 | . 2 . 5 . . . . 10 . Route ------- -11/Scrapyard -10/Materials (discovered 3 exits: *Mat x3) -9/Materials (discovered 3 exits: *Mat x3) -8/Materials (discovered 3 exits: *Fac x3) -7/Factory (discovered 4 exits: *Fac x4) -6/Factory (discovered 4 exits: *Fac x4) -5/Factory (discovered 4 exits: *Fac x4) -4/Factory -4/Armory (discovered 2 exits: *Res x2) -3/Research History --------- Turn | Location | Event 2 | -11/Scrapyard | Met Revision 17 6 | -11/Scrapyard | Discovered new exit (range 15) 37 | -11/Scrapyard | Entered Materials 60 | -10/Materials | Identified exit to Materials 121 | -10/Materials | Entered another Materials area 123 | -9/Materials | Reached level 2 132 | -9/Materials | Identified exit to Materials 168 | -9/Materials | Entered another Materials area 170 | -8/Materials | Reached level 3 200 | -8/Materials | Identified exit to Factory 261 | -8/Materials | Entered Factory 263 | -7/Factory | Reached level 4 337 | -7/Factory | System corruption reached 10% 388 | -7/Factory | Identified exit to Factory 394 | -7/Factory | Core integrity fell below 50% 409 | -7/Factory | Build established: Hacker-Mutant 435 | -7/Factory | Core integrity fell below 20% 437 | -7/Factory | Entered another Factory area 438 | -6/Factory | Core integrity fell below 50% 438 | -6/Factory | Core integrity fell below 20% 439 | -6/Factory | Reached level 5 439 | -6/Factory | Upgraded with Utility slot (x1) 479 | -6/Factory | Upgraded with Utility slot (x1) 515 | -6/Factory | Identified exit to Factory 541 | -6/Factory | Entered another Factory area 542 | -5/Factory | Core integrity fell below 50% 543 | -5/Factory | Reached level 6 543 | -5/Factory | Upgraded with Utility slot (x1) 648 | -5/Factory | Identified exit to Factory 685 | -5/Factory | Entered another Factory area 686 | -4/Factory | Core integrity fell below 50% 687 | -4/Factory | Reached level 7 805 | -4/Factory | Discovered new exit (range 9) 807 | -4/Factory | Core integrity fell below 20% 808 | -4/Factory | Identified exit to Armory 808 | -4/Factory | Entered Armory 810 | -4/Armory | Reached level 8 895 | -4/Armory | Identified exit to Research 901 | -4/Armory | Spotted B-86 Titan 907 | -4/Armory | Entered Research 908 | -3/Research | Core integrity fell below 50% 909 | -3/Research | Reached level 9 909 | -3/Research | Reached level 10 931 | -3/Research | Spotted B-86 Titan 937 | -3/Research | Core integrity fell below 20% 943 | -3/Research | Destroyed by B-86 Titan with Hardcell Cannon Last Messages --------------- 00895_ Connecting with Terminal... >>Layout(Zone) Retrieving Zone 3C layout... Downloaded map data. 00895_ Connecting with Terminal... >>Access(Main) Found 2 level access points to Research: (17,31) (104,51) Map updated. 00905_ Penetrated by Slug. 00907_ Slug penetrates Wall. 00907_ Penetrated by Slug. LOCATION=RESEARCH GOAL=ESCAPE 00909_ Reached level 9. 00909_ Reached level 10. 00936_ Knocked back. 00941_ B-86 Titan activates siege mode. 00941_ U-05 Engineer builds a Wall. Map ----- +----------------------------------------------------+ | ?????????????????????????????????????????????????? | | ?????????????????????????????????????????????????? | | ?????????????????????????????????????????????????? | | ?????????????????????????????????????????????????? | | ?????????????????????????????????????????????????? | | ?????????????????????????????????????????????????? | | ?????????????????????????????????????????????????? | | ?????????????????????????????????????????????????? | | ?????????????????????????????????????????????????? | | ??????????????k??????????#???????????????????????? | | ??????????????????????#?????""???????????????????? | | ??????????????????u ? ???+? ??? ????????????????? | | ???????????????? ? ?? ???? ? ?? ??????????????? | | ??????????????? ???? ??/ ??????? ?????????????? | | ?????????????? ? ? ?? ? ? ?""" ?????????????????? | | ?????????????????#?# ???# ??"? ? ??????????????? | | ?????????????#??#### ???## ??"??? ? ??#??????????? | | ?????????????????#?# ????? ?? ????? ????????????? | | ?????????????#?#???# ?u##???? ? ??? ???????????? | | ????????????#?? ? ?# ?###??#?#?###?????????????? | | ?????????? ????? ?# ?##??? ??? ?#??????????? | | ?????????????? ? ?# ?????#? ? ? ?#?????????? | | ?????????????#?? ? #R #####?? ? ??? ###????????? | | ?????????? ?#? ???# #BB#?? ? ????#?????????? | | ???????????? ? ? ?# ;BB######+##?#?##????????? | | ?????????????#? ???# @ #?#??##????????? | | ?????????? ? # ? # ######?##?#???????? | | ?????????? ??#? # #?####??###?#?????? | | ??????????#???? + !!! ##??#??#?#????????? | | ?????????????# ? # !=! ##?##????##????????? | | ?????????????# ????# !!! ##?##??####???#????? | | ???????????#?####### ^ ########?#?????#???? | | ???????????? ; ###?????????? | | ???????????? # ##?#????????? | | ???????????? u# / ##??????????? | | ???????????? + ##??????????? | | ?????????????########+####+## # ###?#???????? | | ????????????### # # #???##??????? | | ??????????????# + ########???#??#????? | | ??????????????# # ###??#####?????????? | | ??????????????# A # #?###?????#???#????? | | ??????????????# # #???#??#?###??#????? | | ??????????????# ?# ##?#?####??#??#????? | | ???????????????! # ##########????##???? | | ??????????????# ?# #??#???###???#?????? | | ?#?#??????????? ?# ###?#??????????????? | | ????????#? ? #? ? # #????#????????#????? | | ?? ? ???????#?? ?? ?# #?##??#?##??#??????? | | ? ?? ??#?#?#?#?+############+#?#????#?#?????????? | | ??? ?? ??#?#### # #?#####??#?###?????? | +----------------------------------------------------+ Best States ------------- Heat Dissipation 25 Energy Generation 28 Energy Capacity 170 Matter Stores 265 Matter Capacity 300 Sight Range 16 Robot Scan Range 20 Terrain Scan Range 16 Terrain Scan Density 610 ECM Strength 3 Evasion (%) 63 Offensive Hacking 40 Defensive Hacking 5 Item Schematics ----------------- None Robot Schematics ------------------ None Fabricated ------------ Nothing Alien Tech Used ----------------- None Achievements -------------- None Challenges ------------ None RPGLIKE | -11 -10 -9 -8 -7 -6 -5 -4 -4 -3 --------- Run | Scr Mat Mat Mat Fac Fac Fac Fac Arm Res Levels Raised 9 | . . 1 1 1 1 1 1 1 2 XP Earned 16705 | 3000 425 1535 1635 1950 1720 1540 1560 1340 2000 XP Spent 10650 | 1770 . 1400 . 2480 3085 1715 200 . . Upgrades 36 | 10 . 2 . 4 16 3 1 . . Utility Slot 3 | . . . . . 2 1 . . . Core Integrity 5 | . . . . . 4 1 . . . Energy Generation 2 | 1 . . . . . 1 . . . Mass Support 2 | 1 . . . . . . 1 . . Inventory Capacity 1 | 1 . . . . . . . . . Sensor Range 10 | . . . . . 10 . . . . Terrain Scan Density 6 | 4 . . . 2 . . . . . Hack Attack % 6 | 2 . 2 . 2 . . . . . Hack Defense % 1 | 1 . . . . . . . . . Protomatter Created 206 | . 12 . 43 . . . . 151 . Integrity Restored 384 | . 36 . 120 . . . . 228 . Core 384 | . 36 . 120 . . . . 228 . Protomatter Decayed 141 | . . . . 47 . . . 94 . Game ------ Seed MicroMassClaw Manual? 0 Play Time 00:15:19 Cumulative 430.1 hours Start 2019.12.21 @ 02:21:47 End 2019.12.21 @ 02:36:39 Sessions 1 Manual Loads 0 Difficulty Rogue Special Mode Winter2019/RPGLIKE Game No. 329 Rogue 325 Adventurer 4 Explorer 0 Win Type - Total 38 Types 30/3/1/2/2/0/0 Lore% 93 Gallery% 94 Achievement% 90 Wizard Run 0 Options --------- ASCII 0 Keyboard 1 Movement Vi Keybinds 0 Fullscreen 0 Font 16/Terminus Map View 76x50 Tactical HUD 1 Map Filters NONE Filters NONE Steam 1 RUN: 2a6ad5d1-5e4c-4c2c-9772-aee59e8c85e5